[Event "Titled Tuesday Blitz July 26 Early 2022"]
[White "parintele_chess"]
[Black "Vidonyak, Roman"]
[BlackFideId "14100622"]
[WhiteElo "2228"]
[BlackElo "2356"]
[Result "1/2-1/2"]
[Round "06"]
[TimeControl "180+1"]
[Date "2022.07.27"]
[WhiteClock "0:00:03"]
[BlackClock "0:00:28"]

1. d4 {[%clk 0:03:00]}  Nf6 {[%clk 0:02:59]} 2. c4 {[%clk 0:03:00]}  g6 {[%clk 0:03:00]} 3. Nc3 {[%clk 0:02:58]}  d5 {[%clk 0:03:00]} 4. cxd5 {[%clk 0:02:59]}  Nxd5 {[%clk 0:03:01]} 5. e4 {[%clk 0:02:59]}  Nxc3 {[%clk 0:03:01]} 6. bxc3 {[%clk 0:03:00]}  Bg7 {[%clk 0:03:02]} 7. Nf3 {[%clk 0:03:01]}  c5 {[%clk 0:03:02]} 8. Be3 {[%clk 0:03:00]}  Qa5 {[%clk 0:02:59]} 9. Qd2 {[%clk 0:02:57]}  cxd4 {[%clk 0:02:58]} 10. cxd4 {[%clk 0:02:56]}  Qxd2+ {[%clk 0:02:59]} 11. Kxd2 {[%clk 0:02:46]}  O-O {[%clk 0:02:59]} 12. Bd3 {[%clk 0:02:42]}  Nc6 {[%clk 0:02:57]} 13. Rac1 {[%clk 0:02:40]}  Rd8 {[%clk 0:02:54]} 14. d5 {[%clk 0:02:39]}  Na5 {[%clk 0:02:46]} 15. Ke2 {[%clk 0:02:25]}  Bg4 {[%clk 0:02:39]} 16. h3 {[%clk 0:02:21]}  Bxf3+ {[%clk 0:02:39]} 17. gxf3 {[%clk 0:02:22]}  Rac8 {[%clk 0:02:39]} 18. Bxa7 {[%clk 0:02:10]}  Bh6 {[%clk 0:02:29]} 19. Be3 {[%clk 0:02:04]}  Bxe3 {[%clk 0:02:26]} 20. Kxe3 {[%clk 0:02:03]}  Ra8 {[%clk 0:02:16]} 21. Rc7 {[%clk 0:01:57]}  Kf8 {[%clk 0:02:16]} 22. Rhc1 {[%clk 0:01:49]}  h5 {[%clk 0:02:11]} 23. h4 {[%clk 0:01:45]}  Rd6 {[%clk 0:01:55]} 24. Rc8+ {[%clk 0:01:41]}  Rxc8 {[%clk 0:01:54]} 25. Rxc8+ {[%clk 0:01:42]}  Kg7 {[%clk 0:01:54]} 26. Ra8 {[%clk 0:01:36]}  b6 {[%clk 0:01:54]} 27. Ra7 {[%clk 0:01:35]}  Kf8 {[%clk 0:01:50]} 28. Ra8+ {[%clk 0:01:31]}  Kg7 {[%clk 0:01:50]} 29. Bb5 {[%clk 0:01:25]}  g5 {[%clk 0:01:45]} 30. hxg5 {[%clk 0:01:23]}  h4 {[%clk 0:01:45]} 31. Kf4 {[%clk 0:00:57]}  Rg6 {[%clk 0:01:38]} 32. Kg4 {[%clk 0:00:49]}  h3 {[%clk 0:01:35]} 33. Kxh3 {[%clk 0:00:48]}  Rxg5 {[%clk 0:01:34]} 34. Re8 {[%clk 0:00:42]}  Kf6 {[%clk 0:01:32]} 35. f4 {[%clk 0:00:38]}  Rg1 {[%clk 0:01:27]} 36. Kh2 {[%clk 0:00:32]}  Rd1 {[%clk 0:01:23]} 37. e5+ {[%clk 0:00:31]}  Kf5 {[%clk 0:01:23]} 38. Rxe7 {[%clk 0:00:29]}  Kxf4 {[%clk 0:01:21]} 39. d6 {[%clk 0:00:19]}  f6 {[%clk 0:01:17]} 40. exf6 {[%clk 0:00:14]}  Rxd6 {[%clk 0:01:16]} 41. f7 {[%clk 0:00:11]}  Rf6 {[%clk 0:01:16]} 42. Be8 {[%clk 0:00:04]}  Nc4 {[%clk 0:01:14]} 43. Kg2 {[%clk 0:00:03]}  Nd6 {[%clk 0:01:13]} 44. Rd7 {[%clk 0:00:03]}  Ne4 {[%clk 0:01:07]} 45. f3 {[%clk 0:00:03]}  Nc5 {[%clk 0:00:53]} 46. Re7 {[%clk 0:00:02]}  Kg5 {[%clk 0:00:49]} 47. Kg3 {[%clk 0:00:02]}  Nd3 {[%clk 0:00:46]} 48. Re4 {[%clk 0:00:01]}  Kh6 {[%clk 0:00:38]} 49. Rh4+ {[%clk 0:00:01]}  Kg7 {[%clk 0:00:30]} 50. Rg4+ {[%clk 0:00:02]}  Kf8 {[%clk 0:00:30]} 51. Rg8+ {[%clk 0:00:02]}  Ke7 {[%clk 0:00:30]} 52. f8=Q+ {[%clk 0:00:01]}  Rxf8 {[%clk 0:00:30]} 53. Rxf8 {[%clk 0:00:02]}  Kxf8 {[%clk 0:00:31]} 54. Bb5 {[%clk 0:00:02]}  Nc5 {[%clk 0:00:31]} 55. a4 {[%clk 0:00:03]}  Ke7 {[%clk 0:00:31]} 56. Kf4 {[%clk 0:00:03]}  Kf6 {[%clk 0:00:31]} 57. Ke3 {[%clk 0:00:03]}  Ke5 {[%clk 0:00:31]} 58. f4+ {[%clk 0:00:04]}  Kf5 {[%clk 0:00:31]} 59. Bd3+ {[%clk 0:00:04]}  Kf6 {[%clk 0:00:30]} 60. Kd4 {[%clk 0:00:04]}  Nxa4 {[%clk 0:00:30]} 61. Bb5 {[%clk 0:00:03]}  Nc5 {[%clk 0:00:30]} 62. Kd5 {[%clk 0:00:03]}  Kf5 {[%clk 0:00:28]} 63. Kc6 {[%clk 0:00:03]}  Kxf4 {[%clk 0:00:28]} 64. Kxb6 {[%clk 0:00:03]} 1/2-1/2


[Site "https://www.chess.com"]

[Event "Titled Tuesday Blitz July 26 Early 2022"]
[White "Abdyzhapar, Asylbek"]
[Black "Mitrabha, Guha"]
[WhiteFideId "13800337"]
[BlackFideId "5057000"]
[WhiteElo "2323"]
[BlackElo "2499"]
[Result "0-1"]
[Round "07"]
[TimeControl "180+1"]
[Date "2022.07.26"]
[WhiteClock "0:02:00"]
[BlackClock "0:01:51"]

1. c4 {[%clk 0:03:00]}  g6 {[%clk 0:02:34]} 2. Nf3 {[%clk 0:03:00]}  Bg7 {[%clk 0:02:32]} 3. g3 {[%clk 0:03:00]}  c5 {[%clk 0:02:32]} 4. Bg2 {[%clk 0:03:00]}  Nc6 {[%clk 0:02:33]} 5. O-O {[%clk 0:03:01]}  e6 {[%clk 0:02:30]} 6. Nc3 {[%clk 0:03:01]}  Nge7 {[%clk 0:02:30]} 7. d4 {[%clk 0:03:01]}  cxd4 {[%clk 0:02:30]} 8. Nb5 {[%clk 0:03:02]}  Nf5 {[%clk 0:02:31]} 9. g4 {[%clk 0:02:59]}  a6 {[%clk 0:02:32]} 10. gxf5 {[%clk 0:02:59]}  axb5 {[%clk 0:02:32]} 11. cxb5 {[%clk 0:03:00]}  Ne7 {[%clk 0:02:28]} 12. Bg5 {[%clk 0:02:52]}  gxf5 {[%clk 0:02:22]} 13. Nxd4 {[%clk 0:02:49]}  d5 {[%clk 0:02:22]} 14. e3 {[%clk 0:02:45]}  O-O {[%clk 0:02:21]} 15. a4 {[%clk 0:02:44]}  e5 {[%clk 0:02:18]} 16. Ne2 {[%clk 0:02:42]}  Be6 {[%clk 0:02:18]} 17. f4 {[%clk 0:02:38]}  f6 {[%clk 0:02:18]} 18. Bh4 {[%clk 0:02:37]}  Qd7 {[%clk 0:02:17]} 19. Qd3 {[%clk 0:02:30]}  Ng6 {[%clk 0:02:12]} 20. Bf2 {[%clk 0:02:27]}  d4 {[%clk 0:02:12]} 21. exd4 {[%clk 0:02:25]}  e4 {[%clk 0:02:12]} 22. Qe3 {[%clk 0:02:24]}  Kh8 {[%clk 0:02:12]} 23. Rfd1 {[%clk 0:02:22]}  Bd5 {[%clk 0:02:06]} 24. Bh3 {[%clk 0:02:21]}  Rg8 {[%clk 0:02:05]} 25. Ng3 {[%clk 0:02:20]}  Nh4 {[%clk 0:02:04]} 26. Kh1 {[%clk 0:02:21]}  Bh6 {[%clk 0:02:04]} 27. Nh5 {[%clk 0:02:15]}  Qf7 {[%clk 0:02:00]} 28. Bxh4 {[%clk 0:02:12]}  Qxh5 {[%clk 0:01:57]} 29. Bxf6+ {[%clk 0:02:12]}  Bg7 {[%clk 0:01:58]} 30. Bxg7+ {[%clk 0:02:09]}  Rxg7 {[%clk 0:01:58]} 31. Rg1 {[%clk 0:02:08]}  Rag8 {[%clk 0:01:54]} 32. Rxg7 {[%clk 0:02:05]}  Rxg7 {[%clk 0:01:55]} 33. a5 {[%clk 0:02:04]}  Qf3+ {[%clk 0:01:50]} 34. Qxf3 {[%clk 0:02:00]}  exf3 {[%clk 0:01:51]} 35. Bf1 {[%clk 0:02:00]}  f2+ {[%clk 0:01:51]} 0-1


[Site "https://www.chess.com"]

[Event "Titled Tuesday Blitz July 26 Early 2022"]
[White "Bashirli, Saadat"]
[Black "Valmana Canto, Jaime"]
[WhiteFideId "13429990"]
[BlackFideId "2268990"]
[WhiteElo "1173"]
[BlackElo "2256"]
[Result "0-1"]
[Round "07"]
[TimeControl "180+1"]
[Date "2022.07.27"]
[WhiteClock "0:00:05"]
[BlackClock "0:00:07"]

1. d4 {[%clk 0:03:00]}  Nf6 {[%clk 0:02:59]} 2. e3 {[%clk 0:03:00]}  d6 {[%clk 0:02:52]} 3. f4 {[%clk 0:03:01]}  g6 {[%clk 0:02:49]} 4. Nf3 {[%clk 0:03:01]}  Bg7 {[%clk 0:02:49]} 5. Bd3 {[%clk 0:03:01]}  O-O {[%clk 0:02:49]} 6. Nbd2 {[%clk 0:03:00]}  Nc6 {[%clk 0:02:50]} 7. c3 {[%clk 0:02:59]}  e5 {[%clk 0:02:50]} 8. O-O {[%clk 0:02:56]}  Qe7 {[%clk 0:02:47]} 9. Bc2 {[%clk 0:02:49]}  Bg4 {[%clk 0:02:39]} 10. h3 {[%clk 0:02:45]}  Bd7 {[%clk 0:02:34]} 11. Ng5 {[%clk 0:02:37]}  exd4 {[%clk 0:02:20]} 12. exd4 {[%clk 0:02:36]}  Rae8 {[%clk 0:02:20]} 13. Nde4 {[%clk 0:02:31]}  Nxe4 {[%clk 0:02:17]} 14. Nxe4 {[%clk 0:02:32]}  Bf5 {[%clk 0:02:16]} 15. Ng3 {[%clk 0:02:27]}  Bxc2 {[%clk 0:02:11]} 16. Qxc2 {[%clk 0:02:26]}  Qh4 {[%clk 0:02:11]} 17. Qf2 {[%clk 0:02:16]}  Ne7 {[%clk 0:02:06]} 18. Bd2 {[%clk 0:02:14]}  f5 {[%clk 0:01:57]} 19. Rae1 {[%clk 0:02:12]}  Nd5 {[%clk 0:01:57]} 20. Qf3 {[%clk 0:02:10]}  c6 {[%clk 0:01:54]} 21. Qf2 {[%clk 0:01:49]}  Nf6 {[%clk 0:01:50]} 22. Bc1 {[%clk 0:01:42]}  d5 {[%clk 0:01:46]} 23. Re5 {[%clk 0:01:34]}  Nd7 {[%clk 0:01:28]} 24. Rxe8 {[%clk 0:01:23]}  Rxe8 {[%clk 0:01:29]} 25. Re1 {[%clk 0:01:23]}  Qd8 {[%clk 0:01:22]} 26. Rxe8+ {[%clk 0:01:20]}  Qxe8 {[%clk 0:01:20]} 27. Qe3 {[%clk 0:01:21]}  Qf7 {[%clk 0:01:05]} 28. Nf1 {[%clk 0:01:07]}  Nb6 {[%clk 0:01:02]} 29. Nd2 {[%clk 0:01:05]}  Bf8 {[%clk 0:01:00]} 30. b3 {[%clk 0:01:00]}  Nc8 {[%clk 0:00:58]} 31. Nf3 {[%clk 0:00:57]}  Be7 {[%clk 0:00:49]} 32. Ne5 {[%clk 0:00:48]}  Qe6 {[%clk 0:00:49]} 33. Nf3 {[%clk 0:00:39]}  Qd6 {[%clk 0:00:42]} 34. Qe5 {[%clk 0:00:36]}  Bf6 {[%clk 0:00:27]} 35. Qe8+ {[%clk 0:00:27]}  Qf8 {[%clk 0:00:27]} 36. Qe6+ {[%clk 0:00:25]}  Kg7 {[%clk 0:00:27]} 37. Qd7+ {[%clk 0:00:21]}  Ne7 {[%clk 0:00:24]} 38. Qxb7 {[%clk 0:00:21]}  a5 {[%clk 0:00:23]} 39. Ne5 {[%clk 0:00:21]}  Bxe5 {[%clk 0:00:22]} 40. fxe5 {[%clk 0:00:22]}  f4 {[%clk 0:00:19]} 41. Kf2 {[%clk 0:00:18]}  Kg8 {[%clk 0:00:17]} 42. Qd7 {[%clk 0:00:15]}  Nf5 {[%clk 0:00:17]} 43. Qe6+ {[%clk 0:00:13]}  Kg7 {[%clk 0:00:17]} 44. Bxf4 {[%clk 0:00:11]}  Nxd4 {[%clk 0:00:17]} 45. Qd7+ {[%clk 0:00:08]}  Kg8 {[%clk 0:00:16]} 46. cxd4 {[%clk 0:00:07]}  Qxf4+ {[%clk 0:00:16]} 47. Ke2 {[%clk 0:00:06]}  Qe4+ {[%clk 0:00:16]} 48. Kf1 {[%clk 0:00:05]}  Qd3+ {[%clk 0:00:14]} 49. Ke1 {[%clk 0:00:04]}  Qb1+ {[%clk 0:00:09]} 50. Kf2 {[%clk 0:00:04]}  Qxa2+ {[%clk 0:00:08]} 51. Kg3 {[%clk 0:00:03]}  Qxb3+ {[%clk 0:00:07]} 52. Kh2 {[%clk 0:00:04]}  Qe3 {[%clk 0:00:08]} 53. Qe6+ {[%clk 0:00:02]}  Kg7 {[%clk 0:00:08]} 54. Qxc6 {[%clk 0:00:03]}  Qf4+ {[%clk 0:00:07]} 55. Kg1 {[%clk 0:00:01]}  Qxd4+ {[%clk 0:00:07]} 56. Kh2 {[%clk 0:00:02]}  Qxe5+ {[%clk 0:00:08]} 57. Kh1 {[%clk 0:00:02]}  d4 {[%clk 0:00:08]} 58. Qb7+ {[%clk 0:00:03]}  Kh6 {[%clk 0:00:07]} 59. Qa6 {[%clk 0:00:04]}  Qe1+ {[%clk 0:00:07]} 60. Kh2 {[%clk 0:00:03]}  Qe5+ {[%clk 0:00:07]} 61. Kh1 {[%clk 0:00:03]}  Kg5 {[%clk 0:00:06]} 62. Qd3 {[%clk 0:00:02]}  h5 {[%clk 0:00:06]} 63. Qa3 {[%clk 0:00:02]}  Qe1+ {[%clk 0:00:04]} 64. Kh2 {[%clk 0:00:01]}  Qe5+ {[%clk 0:00:04]} 65. Kh1 {[%clk 0:00:01]}  h4 {[%clk 0:00:05]} 66. Kg1 {[%clk 0:00:01]}  Qe1+ {[%clk 0:00:05]} 67. Kh2 {[%clk 0:00:01]}  Qg3+ {[%clk 0:00:06]} 68. Kh1 {[%clk 0:00:02]}  Qxa3 {[%clk 0:00:05]} 69. Kg1 {[%clk 0:00:02]}  Qc1+ {[%clk 0:00:05]} 70. Kh2 {[%clk 0:00:03]}  Qf4+ {[%clk 0:00:05]} 71. Kh1 {[%clk 0:00:04]}  d3 {[%clk 0:00:05]} 72. Kg1 {[%clk 0:00:05]}  d2 {[%clk 0:00:06]} 73. g3 {[%clk 0:00:04]}  d1=Q+ {[%clk 0:00:07]} 74. Kg2 {[%clk 0:00:05]}  Qdf3+ {[%clk 0:00:07]} 75. Kg1 {[%clk 0:00:04]}  Q3xg3+ {[%clk 0:00:07]} 76. Kh1 {[%clk 0:00:05]}  Qf1# {[%clk 0:00:07]} 0-1


[Site "https://www.chess.com"]

[Event "Titled Tuesday Blitz July 26 Early 2022"]
[White "Blanco Ronquillo, Humberto L."]
[Black "Seo, Jung Min"]
[WhiteFideId "3504239"]
[BlackFideId "1734687"]
[WhiteElo "2423"]
[BlackElo "2414"]
[Result "1/2-1/2"]
[Round "07"]
[TimeControl "180+1"]
[Date "2022.07.26"]
[WhiteClock "0:00:09"]
[BlackClock "0:00:04"]

1. e4 {[%clk 0:03:00]}  c6 {[%clk 0:03:00]} 2. d4 {[%clk 0:03:00]}  d5 {[%clk 0:03:00]} 3. exd5 {[%clk 0:03:01]}  Qxd5 {[%clk 0:02:58]} 4. Nf3 {[%clk 0:03:00]}  Bg4 {[%clk 0:02:58]} 5. Be2 {[%clk 0:02:59]}  Nf6 {[%clk 0:02:58]} 6. O-O {[%clk 0:02:58]}  e6 {[%clk 0:02:58]} 7. Bf4 {[%clk 0:02:54]}  Be7 {[%clk 0:02:54]} 8. c3 {[%clk 0:02:54]}  O-O {[%clk 0:02:54]} 9. Nbd2 {[%clk 0:02:55]}  Qd8 {[%clk 0:02:51]} 10. Qb3 {[%clk 0:02:53]}  Qb6 {[%clk 0:02:50]} 11. Nc4 {[%clk 0:02:54]}  Qa6 {[%clk 0:02:43]} 12. Rfe1 {[%clk 0:02:45]}  Bxf3 {[%clk 0:02:42]} 13. Bxf3 {[%clk 0:02:44]}  Nbd7 {[%clk 0:02:42]} 14. Be2 {[%clk 0:02:36]}  b5 {[%clk 0:02:41]} 15. Nd6 {[%clk 0:02:30]}  Nd5 {[%clk 0:02:39]} 16. Bg3 {[%clk 0:02:28]}  N7b6 {[%clk 0:02:33]} 17. Qc2 {[%clk 0:02:09]}  Rfd8 {[%clk 0:02:31]} 18. Ne4 {[%clk 0:02:09]}  Qb7 {[%clk 0:02:29]} 19. Bf3 {[%clk 0:02:08]}  Rac8 {[%clk 0:02:27]} 20. Qe2 {[%clk 0:02:04]}  a6 {[%clk 0:02:24]} 21. Nc5 {[%clk 0:01:56]}  Bxc5 {[%clk 0:02:21]} 22. dxc5 {[%clk 0:01:57]}  Nd7 {[%clk 0:02:20]} 23. Bd6 {[%clk 0:01:57]}  N7f6 {[%clk 0:02:20]} 24. a4 {[%clk 0:01:49]}  Ne8 {[%clk 0:02:19]} 25. Bg3 {[%clk 0:01:48]}  Qe7 {[%clk 0:02:19]} 26. Bxd5 {[%clk 0:01:31]}  Rxd5 {[%clk 0:02:18]} 27. b4 {[%clk 0:01:31]}  h6 {[%clk 0:02:17]} 28. axb5 {[%clk 0:01:31]}  axb5 {[%clk 0:02:17]} 29. h3 {[%clk 0:01:31]}  Qd7 {[%clk 0:02:14]} 30. Red1 {[%clk 0:01:30]}  Rd8 {[%clk 0:02:13]} 31. Rxd5 {[%clk 0:01:26]}  Qxd5 {[%clk 0:02:13]} 32. Kh2 {[%clk 0:01:23]}  Nf6 {[%clk 0:02:12]} 33. f3 {[%clk 0:01:21]}  Qb3 {[%clk 0:01:57]} 34. Bc7 {[%clk 0:01:06]}  Rc8 {[%clk 0:01:54]} 35. Be5 {[%clk 0:01:03]}  Nd5 {[%clk 0:01:54]} 36. Qe1 {[%clk 0:00:41]}  Re8 {[%clk 0:01:51]} 37. Ra6 {[%clk 0:00:39]}  f6 {[%clk 0:01:47]} 38. Bd4 {[%clk 0:00:34]}  e5 {[%clk 0:01:44]} 39. Rxc6 {[%clk 0:00:33]}  Ne7 {[%clk 0:01:25]} 40. Rc7 {[%clk 0:00:30]}  exd4 {[%clk 0:01:17]} 41. Rxe7 {[%clk 0:00:29]}  Rxe7 {[%clk 0:01:17]} 42. Qxe7 {[%clk 0:00:30]}  dxc3 {[%clk 0:01:17]} 43. Qe8+ {[%clk 0:00:30]}  Kh7 {[%clk 0:01:17]} 44. Qe4+ {[%clk 0:00:29]}  Kg8 {[%clk 0:01:13]} 45. Qe8+ {[%clk 0:00:27]}  Kh7 {[%clk 0:01:12]} 46. Qe4+ {[%clk 0:00:28]}  Kh8 {[%clk 0:01:10]} 47. Qe8+ {[%clk 0:00:27]}  Qg8 {[%clk 0:01:01]} 48. Qe4 {[%clk 0:00:26]}  Qb3 {[%clk 0:00:44]} 49. Qe8+ {[%clk 0:00:25]}  Qg8 {[%clk 0:00:43]} 50. Qe4 {[%clk 0:00:25]}  Qb8+ {[%clk 0:00:19]} 51. f4 {[%clk 0:00:24]}  Qc7 {[%clk 0:00:17]} 52. g3 {[%clk 0:00:23]}  Qd7 {[%clk 0:00:17]} 53. c6 {[%clk 0:00:13]}  Qd2+ {[%clk 0:00:17]} 54. Kg1 {[%clk 0:00:10]}  Qd1+ {[%clk 0:00:11]} 55. Kh2 {[%clk 0:00:10]}  Qd2+ {[%clk 0:00:08]} 56. Kg1 {[%clk 0:00:09]}  c2 {[%clk 0:00:05]} 57. Qe8+ {[%clk 0:00:09]}  Kh7 {[%clk 0:00:05]} 58. Qe4+ {[%clk 0:00:10]}  Kg8 {[%clk 0:00:05]} 59. Qe8+ {[%clk 0:00:10]}  Kh7 {[%clk 0:00:05]} 60. Qe4+ {[%clk 0:00:11]}  f5 {[%clk 0:00:06]} 61. Qxf5+ {[%clk 0:00:11]}  Kg8 {[%clk 0:00:06]} 62. Qe6+ {[%clk 0:00:09]}  Kf8 {[%clk 0:00:06]} 63. Qc8+ {[%clk 0:00:07]}  Ke7 {[%clk 0:00:06]} 64. Qc7+ {[%clk 0:00:07]}  Ke6 {[%clk 0:00:06]} 65. Qc8+ {[%clk 0:00:08]}  Kf6 {[%clk 0:00:05]} 66. Qf8+ {[%clk 0:00:07]}  Kg6 {[%clk 0:00:05]} 67. Qe8+ {[%clk 0:00:08]}  Kf5 {[%clk 0:00:04]} 68. Qe5+ {[%clk 0:00:06]}  Kg6 {[%clk 0:00:04]} 69. Qe6+ {[%clk 0:00:07]}  Kh7 {[%clk 0:00:04]} 70. Qe4+ {[%clk 0:00:07]}  Kg8 {[%clk 0:00:04]} 71. Qe8+ {[%clk 0:00:08]}  Kh7 {[%clk 0:00:04]} 72. Qe4+ {[%clk 0:00:09]}  Kg8 {[%clk 0:00:04]} 73. Qe8+ {[%clk 0:00:09]}  Kh7 {[%clk 0:00:04]} 74. Qe4+ {[%clk 0:00:09]} 1/2-1/2


[Site "https://www.chess.com"]

[Event "Titled Tuesday Blitz July 26 Early 2022"]
[White "Bressac, Stephane"]
[Black "Large, Peter G"]
[WhiteFideId "655945"]
[BlackFideId "400866"]
[WhiteElo "2321"]
[BlackElo "2064"]
[Result "0-1"]
[Round "07"]
[TimeControl "180+1"]
[Date "2022.07.27"]
[WhiteClock "0:00:20"]
[BlackClock "0:00:11"]

1. e4 {[%clk 0:03:00]}  c5 {[%clk 0:02:58]} 2. Nf3 {[%clk 0:03:00]}  d6 {[%clk 0:02:56]} 3. Bb5+ {[%clk 0:03:00]}  Nc6 {[%clk 0:02:55]} 4. Bxc6+ {[%clk 0:02:55]}  bxc6 {[%clk 0:02:55]} 5. O-O {[%clk 0:02:56]}  e5 {[%clk 0:02:45]} 6. c3 {[%clk 0:02:56]}  Nf6 {[%clk 0:02:38]} 7. Re1 {[%clk 0:02:55]}  Be7 {[%clk 0:02:33]} 8. d4 {[%clk 0:02:55]}  cxd4 {[%clk 0:02:33]} 9. cxd4 {[%clk 0:02:55]}  Qc7 {[%clk 0:02:23]} 10. dxe5 {[%clk 0:02:55]}  dxe5 {[%clk 0:02:23]} 11. Qc2 {[%clk 0:02:55]}  O-O {[%clk 0:02:22]} 12. b3 {[%clk 0:02:54]}  Bg4 {[%clk 0:02:19]} 13. Nbd2 {[%clk 0:02:53]}  Rfe8 {[%clk 0:02:06]} 14. h3 {[%clk 0:02:50]}  Bh5 {[%clk 0:02:05]} 15. Bb2 {[%clk 0:02:42]}  Bb4 {[%clk 0:01:50]} 16. Rec1 {[%clk 0:02:31]}  Rac8 {[%clk 0:01:42]} 17. a3 {[%clk 0:02:31]}  Bf8 {[%clk 0:01:39]} 18. b4 {[%clk 0:02:17]}  Qb8 {[%clk 0:01:25]} 19. Ne1 {[%clk 0:02:01]}  c5 {[%clk 0:01:22]} 20. b5 {[%clk 0:01:36]}  Qxb5 {[%clk 0:01:18]} 21. Nc4 {[%clk 0:01:37]}  Qb8 {[%clk 0:01:13]} 22. f3 {[%clk 0:01:25]}  Bg6 {[%clk 0:01:09]} 23. Nd3 {[%clk 0:01:25]}  Nd7 {[%clk 0:01:08]} 24. Bc3 {[%clk 0:01:24]}  Qc7 {[%clk 0:01:07]} 25. Ba5 {[%clk 0:01:24]}  Qc6 {[%clk 0:01:06]} 26. Rab1 {[%clk 0:01:20]}  f6 {[%clk 0:01:06]} 27. Bc3 {[%clk 0:01:17]}  Bf7 {[%clk 0:01:06]} 28. Na5 {[%clk 0:01:17]}  Qa6 {[%clk 0:01:02]} 29. Nb2 {[%clk 0:01:06]}  c4 {[%clk 0:01:00]} 30. Bb4 {[%clk 0:01:04]}  Bxb4 {[%clk 0:00:57]} 31. axb4 {[%clk 0:01:04]}  Qb6+ {[%clk 0:00:57]} 32. Kh2 {[%clk 0:00:51]}  Qxb4 {[%clk 0:00:51]} 33. Qa4 {[%clk 0:00:50]}  Qxa4 {[%clk 0:00:47]} 34. Nxa4 {[%clk 0:00:51]}  Nc5 {[%clk 0:00:39]} 35. Nxc5 {[%clk 0:00:47]}  Rxc5 {[%clk 0:00:39]} 36. Nb7 {[%clk 0:00:47]}  Rc7 {[%clk 0:00:37]} 37. Nd6 {[%clk 0:00:46]}  Rd8 {[%clk 0:00:37]} 38. Nb5 {[%clk 0:00:44]}  Rcd7 {[%clk 0:00:36]} 39. Nc3 {[%clk 0:00:39]}  h5 {[%clk 0:00:35]} 40. Kg3 {[%clk 0:00:38]}  Rc7 {[%clk 0:00:35]} 41. Nb5 {[%clk 0:00:36]}  Rb7 {[%clk 0:00:33]} 42. Nc3 {[%clk 0:00:35]}  Rb3 {[%clk 0:00:32]} 43. Na4 {[%clk 0:00:31]}  Rxb1 {[%clk 0:00:30]} 44. Rxb1 {[%clk 0:00:31]}  Rd7 {[%clk 0:00:27]} 45. Rb8+ {[%clk 0:00:26]}  Kh7 {[%clk 0:00:27]} 46. Rc8 {[%clk 0:00:26]}  Rd2 {[%clk 0:00:22]} 47. h4 {[%clk 0:00:24]}  Kg6 {[%clk 0:00:22]} 48. Rc7 {[%clk 0:00:23]}  Be8 {[%clk 0:00:22]} 49. Nc5 {[%clk 0:00:21]}  Bf7 {[%clk 0:00:17]} 50. Rxa7 {[%clk 0:00:17]}  c3 {[%clk 0:00:16]} 51. Rc7 {[%clk 0:00:17]}  c2 {[%clk 0:00:16]} 52. Na6 {[%clk 0:00:15]}  Bb3 {[%clk 0:00:14]} 53. Nb4 {[%clk 0:00:15]}  Rd1 {[%clk 0:00:13]} 54. Nxc2 {[%clk 0:00:13]}  Rc1 {[%clk 0:00:14]} 55. Rb7 {[%clk 0:00:13]}  Bxc2 {[%clk 0:00:14]} 56. Rc7 {[%clk 0:00:14]}  Kh6 {[%clk 0:00:14]} 57. Kf2 {[%clk 0:00:13]}  Kh7 {[%clk 0:00:12]} 58. Ke3 {[%clk 0:00:13]}  Kg8 {[%clk 0:00:11]} 59. Kd2 {[%clk 0:00:13]}  Rg1 {[%clk 0:00:10]} 60. Kxc2 {[%clk 0:00:12]}  Rxg2+ {[%clk 0:00:11]} 61. Kd3 {[%clk 0:00:13]}  Rh2 {[%clk 0:00:11]} 62. Ke3 {[%clk 0:00:10]}  Rxh4 {[%clk 0:00:11]} 63. Rc8+ {[%clk 0:00:11]}  Kh7 {[%clk 0:00:11]} 64. Rc1 {[%clk 0:00:12]}  Rh2 {[%clk 0:00:09]} 65. Rf1 {[%clk 0:00:10]}  g5 {[%clk 0:00:09]} 66. f4 {[%clk 0:00:11]}  gxf4+ {[%clk 0:00:09]} 67. Kf3 {[%clk 0:00:12]}  Rh3+ {[%clk 0:00:08]} 68. Kg2 {[%clk 0:00:12]}  Rg3+ {[%clk 0:00:08]} 69. Kf2 {[%clk 0:00:13]}  Kg6 {[%clk 0:00:09]} 70. Rh1 {[%clk 0:00:14]}  Kg5 {[%clk 0:00:09]} 71. Rc1 {[%clk 0:00:14]}  Rb3 {[%clk 0:00:08]} 72. Rc8 {[%clk 0:00:14]}  Rb2+ {[%clk 0:00:08]} 73. Kf3 {[%clk 0:00:15]}  Rb3+ {[%clk 0:00:08]} 74. Kf2 {[%clk 0:00:15]}  h4 {[%clk 0:00:08]} 75. Rg8+ {[%clk 0:00:15]}  Kh5 {[%clk 0:00:09]} 76. Rf8 {[%clk 0:00:14]}  Kg6 {[%clk 0:00:09]} 77. Rg8+ {[%clk 0:00:14]}  Kf7 {[%clk 0:00:09]} 78. Rh8 {[%clk 0:00:13]}  h3 {[%clk 0:00:10]} 79. Rh7+ {[%clk 0:00:13]}  Kg6 {[%clk 0:00:09]} 80. Rh8 {[%clk 0:00:14]}  Re3 {[%clk 0:00:10]} 81. Rg8+ {[%clk 0:00:14]}  Kf7 {[%clk 0:00:10]} 82. Rh8 {[%clk 0:00:14]}  Rxe4 {[%clk 0:00:11]} 83. Rxh3 {[%clk 0:00:15]}  Re3 {[%clk 0:00:11]} 84. Rh7+ {[%clk 0:00:16]}  Kg6 {[%clk 0:00:11]} 85. Rh8 {[%clk 0:00:16]}  Ra3 {[%clk 0:00:10]} 86. Rg8+ {[%clk 0:00:17]}  Kf5 {[%clk 0:00:11]} 87. Ra8 {[%clk 0:00:17]}  Rxa8 {[%clk 0:00:10]} 88. Kf3 {[%clk 0:00:18]}  Ra3+ {[%clk 0:00:10]} 89. Kf2 {[%clk 0:00:18]}  e4 {[%clk 0:00:10]} 90. Ke2 {[%clk 0:00:18]}  Ra2+ {[%clk 0:00:10]} 91. Kd1 {[%clk 0:00:19]}  f3 {[%clk 0:00:11]} 92. Ke1 {[%clk 0:00:19]}  e3 {[%clk 0:00:11]} 93. Kf1 {[%clk 0:00:20]}  Ra1# {[%clk 0:00:11]} 0-1


[Site "https://www.chess.com"]